[Event "*** Titled Tuesday 3|2 Blitz"]
[Site "Chess.com"]
[Date "2015.12.01"]
[Round "6"]
[White "Gabrinsky"]
[Black "AdrianaNikolova"]
[Result "1-0"]
[WhiteElo "2345"]
[BlackElo "2182"]
[TimeControl "180+2"]
[EndTime "18:14:35 PST"]
[Termination "Gabrinsky won by resignation"]

1. e4 {[%clk 0:03:01.9]} 1... c5 {[%clk 0:02:44.2]} 2. Nf3 {[%clk 0:03:02.6]}
2... Nc6 {[%clk 0:02:43.8]} 3. d4 {[%clk 0:03:02.1]} 3... cxd4 {[%clk
0:02:45.7]} 4. Nxd4 {[%clk 0:03:03.8]} 4... Nf6 {[%clk 0:02:46.9]} 5. Nc3 {[%clk
0:03:04.3]} 5... d6 {[%clk 0:02:48.3]} 6. Be3 {[%clk 0:03:05.2]} 6... e5 {[%clk
0:02:49]} 7. Nf3 {[%clk 0:03:03.9]} 7... Be6 {[%clk 0:02:47.8]} 8. Be2 {[%clk
0:03:03]} 8... h6 {[%clk 0:02:47.3]} 9. Qd2 {[%clk 0:03:04.2]} 9... Be7 {[%clk
0:02:45.5]} 10. O-O {[%clk 0:03:05.1]} 10... O-O {[%clk 0:02:46.5]} 11. Rfd1
{[%clk 0:03:06.4]} 11... Ng4 {[%clk 0:02:40.1]} 12. h3 {[%clk 0:02:59.5]} 12...
Nxe3 {[%clk 0:02:40.5]} 13. Qxe3 {[%clk 0:03:01.4]} 13... Qa5 {[%clk 0:02:35.3]}
14. a3 {[%clk 0:03:01.2]} 14... a6 {[%clk 0:02:32.3]} 15. Nd5 {[%clk 0:03:01.1]}
15... Bxd5 {[%clk 0:02:25.7]} 16. Rxd5 {[%clk 0:03:03]} 16... Qc7 {[%clk
0:02:20.4]} 17. Rad1 {[%clk 0:03:03.7]} 17... Rfd8 {[%clk 0:02:12.1]} 18. Bc4
{[%clk 0:03:03.8]} 18... Na5 {[%clk 0:02:02.5]} 19. Bb3 {[%clk 0:03:03.2]} 19...
Nxb3 {[%clk 0:01:58.8]} 20. Qxb3 {[%clk 0:03:05.1]} 20... Rac8 {[%clk
0:01:59.9]} 21. c3 {[%clk 0:03:06]} 21... Bf8 {[%clk 0:01:42.6]} 22. Ne1 {[%clk
0:02:59]} 22... Qc4 {[%clk 0:01:41.1]} 23. Qxc4 {[%clk 0:02:58.3]} 23... Rxc4
{[%clk 0:01:43]} 24. f3 {[%clk 0:03:00]} 24... Rdc8 {[%clk 0:01:40.4]} 25. Nc2
{[%clk 0:03:00.5]} 25... R4c5 {[%clk 0:01:39.1]} 26. Ne3 {[%clk 0:02:56.7]}
26... Rxd5 {[%clk 0:01:39.4]} 27. Nxd5 {[%clk 0:02:58.6]} 27... f6 {[%clk
0:01:32]} 28. g4 {[%clk 0:02:57.1]} 28... Kf7 {[%clk 0:01:33]} 29. Kf2 {[%clk
0:02:55.3]} 29... Ke6 {[%clk 0:01:33.2]} 30. Ke3 {[%clk 0:02:56.5]} 30... g6
{[%clk 0:01:34.1]} 31. Kd3 {[%clk 0:02:55.7]} 31... Rc5 {[%clk 0:01:29]} 32. b4
{[%clk 0:02:55]} 32... Rc6 {[%clk 0:01:29.5]} 33. c4 {[%clk 0:02:54.7]} 33... b5
{[%clk 0:01:10.3]} 34. Rc1 {[%clk 0:02:55.6]} 34... Be7 {[%clk 0:01:02.3]} 35.
Rc2 {[%clk 0:02:53.1]} 35... Kd7 {[%clk 0:00:55.3]} 36. cxb5 {[%clk 0:02:25.9]}
36... Rxc2 {[%clk 0:00:57.2]} 37. Kxc2 {[%clk 0:02:27.1]} 37... axb5 {[%clk
0:00:58.7]} 38. Kb3 {[%clk 0:02:28.1]} 38... Bd8 {[%clk 0:00:56.2]} 39. a4
{[%clk 0:02:29.1]} 39... bxa4+ {[%clk 0:00:50.1]} 40. Kxa4 {[%clk 0:02:31]}
40... Kc6 {[%clk 0:00:52]} 41. Kb3 {[%clk 0:02:32.2]} 41... f5 {[%clk
0:00:51.6]} 42. Kc4 {[%clk 0:02:32.7]} 42... fxe4 {[%clk 0:00:49.2]} 43. fxe4
{[%clk 0:02:33.4]} 43... Bg5 {[%clk 0:00:43.5]} 44. b5+ {[%clk 0:02:32.6]} 44...
Kb7 {[%clk 0:00:44.7]} 45. b6 {[%clk 0:02:31.7]} 45... Kc6 {[%clk 0:00:44.8]}
46. Nb4+ {[%clk 0:02:15.4]} 46... Kxb6 {[%clk 0:00:44.4]} 47. Kd5 {[%clk
0:02:17]} 47... Kb5 {[%clk 0:00:42.4]} 48. Nc6 {[%clk 0:02:15.9]} 48... Bc1
{[%clk 0:00:27.6]} 49. Kxd6 {[%clk 0:02:13.1]} 49... Ba3+ {[%clk 0:00:28.3]} 50.
Kd5 {[%clk 0:02:13.8]} 50... h5 {[%clk 0:00:24.9]} 51. Nxe5 {[%clk 0:02:10.7]}
51... hxg4 {[%clk 0:00:26.8]} 52. hxg4 {[%clk 0:02:12.4]} 52... g5 {[%clk
0:00:27.9]} 53. Nf7 {[%clk 0:02:13.9]} 53... Bc1 {[%clk 0:00:27.5]} 54. e5
{[%clk 0:02:15.2]} 54... Kb6 {[%clk 0:00:28.3]} 55. Kd6 {[%clk 0:02:16.5]} 55...
Bf4 {[%clk 0:00:26.9]} 56. Kd7 {[%clk 0:02:14.2]} 56... Bxe5 {[%clk 0:00:21.3]}
57. Nxe5 {[%clk 0:02:15]} 57... Kc5 {[%clk 0:00:23.2]} 58. Ke6 {[%clk
0:02:16.6]} 58... Kd4 {[%clk 0:00:24.4]} 59. Kf5 {[%clk 0:02:18.1]} 59... Kd5
{[%clk 0:00:25.9]} 60. Nf7 {[%clk 0:02:19.6]} 60... Kc6 {[%clk 0:00:26.8]} 61.
Nxg5 {[%clk 0:02:21.5]} 61... Kd7 {[%clk 0:00:28.7]} 62. Nf3 {[%clk 0:02:23.4]}
62... Ke8 {[%clk 0:00:30.6]} 63. Ne5 {[%clk 0:02:24.9]} 63... Kf8 {[%clk
0:00:32.5]} 64. g5 {[%clk 0:02:26.8]} 64... Kg8 {[%clk 0:00:34.1]} 65. Kf6
{[%clk 0:02:28.7]} 65... Kf8 {[%clk 0:00:36]} 66. g6 {[%clk 0:02:30]} 66... Kg8
{[%clk 0:00:37.9]} 67. g7 {[%clk 0:02:31.6]} 67... Kh7 {[%clk 0:00:39]} 68. Kf7
{[%clk 0:02:33.3]} 68... Kh6 {[%clk 0:00:40.5]} 69. g8=Q {[%clk 0:02:33.4]} 1-0

[Event "*** Titled Tuesday 3|2 Blitz"]
[Site "Chess.com"]
[Date "2015.12.01"]
[Round "6"]
[White "Dlugy"]
[Black "Yaacovn"]
[Result "1-0"]
[WhiteElo "2538"]
[BlackElo "2618"]
[TimeControl "180+2"]
[EndTime "18:14:59 PST"]
[Termination "Dlugy won by resignation"]

1. d4 {[%clk 0:03:01.9]} 1... Nf6 {[%clk 0:03:00.9]} 2. Bf4 {[%clk 0:03:02.9]}
2... e6 {[%clk 0:03:00.9]} 3. e3 {[%clk 0:03:04.2]} 3... Bd6 {[%clk 0:03:02.4]}
4. Bxd6 {[%clk 0:03:05.7]} 4... cxd6 {[%clk 0:03:04]} 5. c4 {[%clk 0:03:07.4]}
5... d5 {[%clk 0:03:05.1]} 6. cxd5 {[%clk 0:03:08.8]} 6... Nxd5 {[%clk
0:03:06.6]} 7. e4 {[%clk 0:03:09.5]} 7... Nf6 {[%clk 0:03:07.6]} 8. Nc3 {[%clk
0:03:10.8]} 8... d6 {[%clk 0:03:08.6]} 9. Nf3 {[%clk 0:03:11.5]} 9... O-O {[%clk
0:03:09.3]} 10. Bd3 {[%clk 0:03:12.7]} 10... Nc6 {[%clk 0:03:09.5]} 11. O-O
{[%clk 0:03:13.6]} 11... Qb6 {[%clk 0:03:10.4]} 12. Na4 {[%clk 0:03:06]} 12...
Qa5 {[%clk 0:03:10.1]} 13. a3 {[%clk 0:03:05.9]} 13... Bd7 {[%clk 0:03:08.6]}
14. b4 {[%clk 0:03:05]} 14... Qh5 {[%clk 0:03:08.6]} 15. Nc3 {[%clk 0:02:55.2]}
15... Rac8 {[%clk 0:02:56.8]} 16. Rc1 {[%clk 0:02:49.4]} 16... a6 {[%clk
0:02:54.8]} 17. Re1 {[%clk 0:02:35.9]} 17... Ne7 {[%clk 0:02:41.6]} 18. Ne2
{[%clk 0:02:27.5]} 18... Rxc1 {[%clk 0:02:38.7]} 19. Qxc1 {[%clk 0:02:29.1]}
19... Rc8 {[%clk 0:02:27]} 20. Qf4 {[%clk 0:02:30.1]} 20... e5 {[%clk
0:02:23.8]} 21. Qd2 {[%clk 0:01:51.4]} 21... Ng6 {[%clk 0:01:58.8]} 22. Ng3
{[%clk 0:01:48]} 22... Qh6 {[%clk 0:01:59.5]} 23. Qxh6 {[%clk 0:01:48.9]} 23...
gxh6 {[%clk 0:02:01.4]} 24. dxe5 {[%clk 0:01:49]} 24... dxe5 {[%clk 0:02:01.2]}
25. Ne2 {[%clk 0:01:40.2]} 25... Bg4 {[%clk 0:01:59.6]} 26. Rc1 {[%clk
0:01:33.4]} 26... Rxc1+ {[%clk 0:01:57.5]} 27. Nxc1 {[%clk 0:01:34.5]} 27...
Bxf3 {[%clk 0:01:58.4]} 28. gxf3 {[%clk 0:01:36.2]} 28... Nf4 {[%clk 0:01:58.4]}
29. Bc4 {[%clk 0:01:33]} 29... Kf8 {[%clk 0:01:53.3]} 30. a4 {[%clk 0:01:27.2]}
30... Ke7 {[%clk 0:01:53]} 31. Nb3 {[%clk 0:01:28.3]} 31... Kd6 {[%clk 0:01:44]}
32. Nc5 {[%clk 0:01:22.4]} 32... Kc6 {[%clk 0:01:39.5]} 33. Bxf7 {[%clk
0:01:23]} 33... a5 {[%clk 0:01:37.2]} 34. Bc4 {[%clk 0:01:01.2]} 34... axb4
{[%clk 0:01:34.7]} 35. Nb3 {[%clk 0:01:02.8]} 35... b6 {[%clk 0:01:30]} 36. Kf1
{[%clk 0:01:01.5]} 36... Kc7 {[%clk 0:01:29.5]} 37. Bb5 {[%clk 0:00:55.9]} 37...
Nd7 {[%clk 0:01:26.9]} 38. Bxd7 {[%clk 0:00:56.3]} 38... Kxd7 {[%clk 0:01:28.4]}
39. Ke1 {[%clk 0:00:55.2]} 39... Nd3+ {[%clk 0:01:27]} 40. Kd2 {[%clk
0:00:53.4]} 40... Nc5 {[%clk 0:01:28.9]} 41. Nxc5+ {[%clk 0:00:49.1]} 41... bxc5
{[%clk 0:01:29.2]} 42. a5 {[%clk 0:00:50.5]} 42... Kc6 {[%clk 0:01:29.8]} 43. f4
{[%clk 0:00:51.8]} 43... exf4 {[%clk 0:01:18.4]} 44. e5 {[%clk 0:00:52.8]} 44...
c4 {[%clk 0:01:19.9]} 45. e6 {[%clk 0:00:52.2]} 45... Kd6 {[%clk 0:00:08.6]} 46.
a6 {[%clk 0:00:52.1]} 1-0

[Event "*** Titled Tuesday 3|2 Blitz"]
[Site "Chess.com"]
[Date "2015.12.01"]
[Round "6"]
[White "alex_zapata"]
[Black "Alliswell998"]
[Result "0-1"]
[WhiteElo "2161"]
[BlackElo "2142"]
[TimeControl "180+2"]
[EndTime "18:15:01 PST"]
[Termination "Alliswell998 won by resignation"]

1. e4 {[%clk 0:03:01.9]} 1... c5 {[%clk 0:03:00.8]} 2. Nf3 {[%clk 0:03:02.1]}
2... d6 {[%clk 0:03:02.2]} 3. d4 {[%clk 0:03:02.1]} 3... cxd4 {[%clk 0:03:04.1]}
4. Nxd4 {[%clk 0:03:03.7]} 4... Nf6 {[%clk 0:03:05.8]} 5. Nc3 {[%clk 0:03:05]}
5... a6 {[%clk 0:03:07.4]} 6. Bg5 {[%clk 0:03:06.3]} 6... e6 {[%clk 0:03:08.7]}
7. f4 {[%clk 0:03:07.7]} 7... Be7 {[%clk 0:03:10.3]} 8. Qf3 {[%clk 0:03:07.7]}
8... h6 {[%clk 0:03:11.9]} 9. Bh4 {[%clk 0:03:07.7]} 9... Nbd7 {[%clk
0:03:12.8]} 10. Bc4 {[%clk 0:03:06.8]} 10... g5 {[%clk 0:03:10.2]} 11. Bf2
{[%clk 0:02:57.5]} 11... gxf4 {[%clk 0:03:07.7]} 12. O-O-O {[%clk 0:02:39.5]}
12... Ne5 {[%clk 0:03:06.9]} 13. Qe2 {[%clk 0:02:39.3]} 13... b5 {[%clk
0:02:58.3]} 14. Bb3 {[%clk 0:02:37.2]} 14... b4 {[%clk 0:02:55.9]} 15. Na4
{[%clk 0:02:36.4]} 15... Bb7 {[%clk 0:02:57]} 16. Nf3 {[%clk 0:02:32.3]} 16...
Nxf3 {[%clk 0:02:54.5]} 17. gxf3 {[%clk 0:02:34.2]} 17... Nd7 {[%clk 0:02:47.7]}
18. Bd4 {[%clk 0:02:23.5]} 18... Bf6 {[%clk 0:02:39.5]} 19. Bxf6 {[%clk
0:02:23.5]} 19... Nxf6 {[%clk 0:02:37.4]} 20. Nc5 {[%clk 0:02:11.2]} 20... Bc6
{[%clk 0:02:28.2]} 21. Nd3 {[%clk 0:02:09]} 21... Bb5 {[%clk 0:02:15.8]} 22. e5
{[%clk 0:02:07.2]} 22... dxe5 {[%clk 0:02:11.2]} 23. Qxe5 {[%clk 0:02:08]} 23...
Qe7 {[%clk 0:02:11.9]} 24. Nxf4 {[%clk 0:02:03.5]} 24... Rg8 {[%clk 0:02:04.8]}
25. Rhe1 {[%clk 0:02:00.7]} 25... Nd7 {[%clk 0:01:59.7]} 26. Qc7 {[%clk
0:01:49.6]} 26... Nc5 {[%clk 0:01:52]} 27. Qxe7+ {[%clk 0:01:49.9]} 27... Kxe7
{[%clk 0:01:53.2]} 28. Nd5+ {[%clk 0:01:50.7]} 28... Kf8 {[%clk 0:01:52.2]} 29.
Nxb4 {[%clk 0:01:49.9]} 29... Rg2 {[%clk 0:01:47]} 30. Rd2 {[%clk 0:01:43]}
30... Rxd2 {[%clk 0:01:42.4]} 31. Kxd2 {[%clk 0:01:44.9]} 31... a5 {[%clk
0:01:39.9]} 32. Nd3 {[%clk 0:01:33]} 32... Rd8 {[%clk 0:01:36.8]} 33. Re5 {[%clk
0:01:25.4]} 33... Nxd3 {[%clk 0:01:11]} 34. Rxb5 {[%clk 0:01:25.2]} 34... Nxb2+
{[%clk 0:00:36.5]} 35. Kc1 {[%clk 0:01:22]} 35... Nd1 {[%clk 0:00:35.6]} 36.
Rxa5 {[%clk 0:01:18.3]} 36... Nc3 {[%clk 0:00:35.3]} 37. a4 {[%clk 0:01:15.5]}
37... Ke7 {[%clk 0:00:30]} 38. Ra7+ {[%clk 0:01:12.4]} 38... Kf6 {[%clk
0:00:26.8]} 39. a5 {[%clk 0:01:12.9]} 39... Nb5 {[%clk 0:00:25.6]} 40. Rb7
{[%clk 0:01:11.3]} 40... Nd4 {[%clk 0:00:22.3]} 41. a6 {[%clk 0:01:09.2]} 41...
Ra8 {[%clk 0:00:22.9]} 42. Bc4 {[%clk 0:01:04.9]} 42... Nxf3 {[%clk 0:00:20.1]}
43. Kb2 {[%clk 0:00:44.3]} 43... Ne5 {[%clk 0:00:21.3]} 44. Bf1 {[%clk
0:00:41.6]} 44... Nc6 {[%clk 0:00:22.4]} 45. Kb3 {[%clk 0:00:36.1]} 45... Na5+
{[%clk 0:00:22.5]} 46. Ka4 {[%clk 0:00:36]} 46... Nxb7 {[%clk 0:00:24]} 0-1

[Event "*** Titled Tuesday 3|2 Blitz"]
[Site "Chess.com"]
[Date "2015.12.01"]
[Round "6"]
[White "JustaTrickstar"]
[Black "yopino"]
[Result "1-0"]
[WhiteElo "2468"]
[BlackElo "2222"]
[TimeControl "180+2"]
[EndTime "18:15:33 PST"]
[Termination "JustaTrickstar won by resignation"]

1. d4 {[%clk 0:03:01.9]} 1... Nf6 {[%clk 0:03:00.1]} 2. c4 {[%clk 0:03:03.1]}
2... e6 {[%clk 0:03:01.3]} 3. Nc3 {[%clk 0:03:04.2]} 3... Bb4 {[%clk 0:03:02.2]}
4. Qc2 {[%clk 0:03:03.3]} 4... Nc6 {[%clk 0:03:02.7]} 5. Nf3 {[%clk 0:03:02.8]}
5... d6 {[%clk 0:03:03.4]} 6. Bd2 {[%clk 0:02:56.1]} 6... O-O {[%clk 0:03:03]}
7. a3 {[%clk 0:02:56.9]} 7... Bxc3 {[%clk 0:03:04.4]} 8. Bxc3 {[%clk 0:02:58.6]}
8... Qe7 {[%clk 0:03:05.8]} 9. g3 {[%clk 0:02:59.3]} 9... a5 {[%clk 0:03:05]}
10. Bg2 {[%clk 0:03:00.1]} 10... a4 {[%clk 0:03:05.6]} 11. O-O {[%clk
0:03:00.9]} 11... e5 {[%clk 0:03:06.1]} 12. d5 {[%clk 0:03:00.3]} 12... Nb8
{[%clk 0:03:04.4]} 13. Nh4 {[%clk 0:03:00.1]} 13... Bd7 {[%clk 0:02:44.3]} 14.
Nf5 {[%clk 0:02:51.2]} 14... Bxf5 {[%clk 0:02:44.2]} 15. Qxf5 {[%clk 0:02:51.3]}
15... Qd7 {[%clk 0:02:42.5]} 16. Qc2 {[%clk 0:02:49.7]} 16... Na6 {[%clk
0:02:42.2]} 17. f4 {[%clk 0:02:50.7]} 17... Ng4 {[%clk 0:02:41.8]} 18. Bh3
{[%clk 0:02:49.8]} 18... Ne3 {[%clk 0:02:32.6]} 19. Bxd7 {[%clk 0:02:05.5]}
19... Nxc2 {[%clk 0:02:33]} 20. Rac1 {[%clk 0:01:53.7]} 20... Ne3 {[%clk
0:02:22.5]} 21. Rf3 {[%clk 0:01:38.9]} 21... Nxc4 {[%clk 0:02:18]} 22. Bxa4
{[%clk 0:01:34.8]} 22... Nc5 {[%clk 0:01:42.3]} 23. Bb5 {[%clk 0:01:28.6]} 23...
e4 {[%clk 0:01:26.8]} 24. Rf2 {[%clk 0:01:17.2]} 24... Ne3 {[%clk 0:01:26.7]}
25. Bd4 {[%clk 0:01:15.3]} 25... Nxd5 {[%clk 0:01:21.8]} 26. Bxc5 {[%clk
0:01:15.6]} 26... dxc5 {[%clk 0:01:23.7]} 27. Rxc5 {[%clk 0:01:17.1]} 27... c6
{[%clk 0:01:25]} 28. Bc4 {[%clk 0:01:17.3]} 28... Rfd8 {[%clk 0:01:18]} 29. Bxd5
{[%clk 0:01:13.9]} 29... Rxd5 {[%clk 0:01:13.7]} 30. Rxd5 {[%clk 0:01:13.7]}
30... cxd5 {[%clk 0:01:15.6]} 31. e3 {[%clk 0:01:15.1]} 31... Kf8 {[%clk
0:01:02.1]} 32. Rc2 {[%clk 0:01:12.7]} 32... Re8 {[%clk 0:00:46.1]} 33. Rc5
{[%clk 0:01:01.7]} 33... Rd8 {[%clk 0:00:46.1]} 34. Rc7 {[%clk 0:01:02.5]} 34...
d4 {[%clk 0:00:47.1]} 35. Kf2 {[%clk 0:00:38.5]} 35... d3 {[%clk 0:00:45.2]} 36.
Ke1 {[%clk 0:00:39.6]} 36... f5 {[%clk 0:00:30.5]} 37. Kd2 {[%clk 0:00:33.1]}
37... Rd6 {[%clk 0:00:29.5]} 38. Rc5 {[%clk 0:00:22]} 38... g6 {[%clk 0:00:29]}
39. Rb5 {[%clk 0:00:21.6]} 39... Rc6 {[%clk 0:00:29.9]} 40. Rxb7 {[%clk
0:00:22.1]} 40... Rc2+ {[%clk 0:00:30.6]} 41. Kd1 {[%clk 0:00:23.6]} 41... Rxh2
{[%clk 0:00:31.5]} 42. a4 {[%clk 0:00:25.1]} 42... Re2 {[%clk 0:00:27.6]} 43. a5
{[%clk 0:00:25.9]} 43... Rxe3 {[%clk 0:00:29]} 44. a6 {[%clk 0:00:27.4]} 44...
Rxg3 {[%clk 0:00:30.3]} 45. a7 {[%clk 0:00:28.6]} 45... Rg1+ {[%clk 0:00:31.1]}
46. Kd2 {[%clk 0:00:29.3]} 46... Ra1 {[%clk 0:00:28]} 47. Rb8+ {[%clk
0:00:30.5]} 47... Kg7 {[%clk 0:00:28.1]} 48. a8=Q {[%clk 0:00:31.9]} 48... Rxa8
{[%clk 0:00:28.8]} 49. Rxa8 {[%clk 0:00:33.8]} 49... Kh6 {[%clk 0:00:30.2]} 50.
Ra7 {[%clk 0:00:34.2]} 50... Kh5 {[%clk 0:00:31.2]} 51. Rxh7+ {[%clk 0:00:35.1]}
51... Kg4 {[%clk 0:00:32.6]} 52. Rg7 {[%clk 0:00:34]} 52... Kf3 {[%clk
0:00:32.6]} 53. Rxg6 {[%clk 0:00:34.4]} 53... e3+ {[%clk 0:00:34.5]} 54. Kxd3
{[%clk 0:00:35.3]} 54... Kf2 {[%clk 0:00:36]} 55. Re6 {[%clk 0:00:36.4]} 1-0

[Event "*** Titled Tuesday 3|2 Blitz"]
[Site "Chess.com"]
[Date "2015.12.01"]
[Round "6"]
[White "kungmongmanh"]
[Black "ItalianMachine"]
[Result "0-1"]
[WhiteElo "2369"]
[BlackElo "2234"]
[TimeControl "180+2"]
[EndTime "18:16:04 PST"]
[Termination "ItalianMachine won by checkmate"]

1. d4 {[%clk 0:03:01.9]} 1... Nf6 {[%clk 0:03:00.1]} 2. c4 {[%clk 0:03:02.1]}
2... e6 {[%clk 0:02:59.7]} 3. Nc3 {[%clk 0:03:02.7]} 3... Bb4 {[%clk 0:02:59]}
4. Qc2 {[%clk 0:03:03.8]} 4... O-O {[%clk 0:02:49.1]} 5. e3 {[%clk 0:03:01.4]}
5... d6 {[%clk 0:02:48.6]} 6. Ne2 {[%clk 0:03:01.3]} 6... b6 {[%clk 0:02:48.8]}
7. a3 {[%clk 0:03:02.3]} 7... Bxc3+ {[%clk 0:02:48.9]} 8. Nxc3 {[%clk
0:03:04.2]} 8... Bb7 {[%clk 0:02:50.5]} 9. Bd2 {[%clk 0:02:55.5]} 9... Nbd7
{[%clk 0:02:52]} 10. Bd3 {[%clk 0:02:56.7]} 10... Qe7 {[%clk 0:02:52.8]} 11. O-O
{[%clk 0:02:57.5]} 11... e5 {[%clk 0:02:54.1]} 12. d5 {[%clk 0:02:55.1]} 12...
Rfe8 {[%clk 0:02:37.4]} 13. e4 {[%clk 0:02:55.6]} 13... h6 {[%clk 0:02:36.4]}
14. b4 {[%clk 0:02:53.8]} 14... Nh5 {[%clk 0:02:31.4]} 15. g3 {[%clk 0:02:48.9]}
15... Nf8 {[%clk 0:02:20.7]} 16. Be2 {[%clk 0:02:48.5]} 16... Nf6 {[%clk
0:02:18.2]} 17. Rfd1 {[%clk 0:02:40.3]} 17... Ng6 {[%clk 0:02:18.7]} 18. Rac1
{[%clk 0:02:30.4]} 18... a5 {[%clk 0:01:59.9]} 19. c5 {[%clk 0:02:28.4]} 19...
axb4 {[%clk 0:01:51.9]} 20. axb4 {[%clk 0:02:29.4]} 20... bxc5 {[%clk
0:01:52.5]} 21. bxc5 {[%clk 0:02:30.4]} 21... Ba6 {[%clk 0:01:52.7]} 22. Bxa6
{[%clk 0:01:42.5]} 22... Rxa6 {[%clk 0:01:52.9]} 23. cxd6 {[%clk 0:01:28.2]}
23... cxd6 {[%clk 0:01:54]} 24. Ne2 {[%clk 0:01:26.1]} 24... Qd7 {[%clk
0:01:52.9]} 25. Kg2 {[%clk 0:01:21.4]} 25... Ra4 {[%clk 0:01:52.2]} 26. f3
{[%clk 0:01:20.8]} 26... Rea8 {[%clk 0:01:25]} 27. Qc6 {[%clk 0:01:06]} 27...
Qd8 {[%clk 0:01:15.5]} 28. Qc7 {[%clk 0:00:49.1]} 28... Qf8 {[%clk 0:01:12.6]}
29. Rc6 {[%clk 0:00:43.4]} 29... Ne8 {[%clk 0:01:12.7]} 30. Qb7 {[%clk
0:00:33.1]} 30... Ne7 {[%clk 0:01:11.1]} 31. Rc2 {[%clk 0:00:28.2]} 31... f5
{[%clk 0:01:12]} 32. Nc3 {[%clk 0:00:26.5]} 32... R4a7 {[%clk 0:01:11.4]} 33.
Qb5 {[%clk 0:00:23.5]} 33... Rb8 {[%clk 0:00:48.3]} 34. Qxb8 {[%clk 0:00:19.1]}
34... Rc7 {[%clk 0:00:47.7]} 35. Qb5 {[%clk 0:00:16.1]} 35... Qf7 {[%clk
0:00:43.8]} 36. Qd3 {[%clk 0:00:16.6]} 36... Nf6 {[%clk 0:00:39.5]} 37. Rf1
{[%clk 0:00:13.9]} 37... Qh5 {[%clk 0:00:39.9]} 38. exf5 {[%clk 0:00:08.3]}
38... Nxf5 {[%clk 0:00:39]} 39. Ne4 {[%clk 0:00:09.3]} 39... Rxc2 {[%clk
0:00:19.1]} 40. Qxc2 {[%clk 0:00:11.2]} 40... Nxd5 {[%clk 0:00:13.3]} 41. Qb3
{[%clk 0:00:08.1]} 41... Qf7 {[%clk 0:00:14.6]} 42. Qd3 {[%clk 0:00:06]} 42...
Nd4 {[%clk 0:00:12.5]} 43. Rf2 {[%clk 0:00:06.2]} 43... g5 {[%clk 0:00:12.7]}
44. Nxd6 {[%clk 0:00:07.5]} 44... Qe6 {[%clk 0:00:11.1]} 45. Nc4 {[%clk
0:00:08.7]} 45... Kg7 {[%clk 0:00:11.6]} 46. Bc3 {[%clk 0:00:07.7]} 46... Nxc3
{[%clk 0:00:08.1]} 47. Qxc3 {[%clk 0:00:09.6]} 47... g4 {[%clk 0:00:09.5]} 48.
fxg4 {[%clk 0:00:10.4]} 48... Qd5+ {[%clk 0:00:10.4]} 49. Kf1 {[%clk 0:00:10.9]}
49... Qh1# {[%clk 0:00:11.2]} 0-1

[Event "*** Titled Tuesday 3|2 Blitz"]
[Site "Chess.com"]
[Date "2015.12.01"]
[Round "6"]
[White "Iball95"]
[Black "gmjoey1"]
[Result "1-0"]
[WhiteElo "2428"]
[BlackElo "2420"]
[TimeControl "180+2"]
[EndTime "18:16:11 PST"]
[Termination "Iball95 won by resignation"]

1. e4 {[%clk 0:02:59.3]} 1... c6 {[%clk 0:03:00.8]} 2. d4 {[%clk 0:02:59.6]}
2... d5 {[%clk 0:03:02.3]} 3. Nc3 {[%clk 0:02:59.6]} 3... dxe4 {[%clk
0:03:03.1]} 4. Nxe4 {[%clk 0:03:01.5]} 4... Bf5 {[%clk 0:03:04.7]} 5. Nc5 {[%clk
0:03:00.7]} 5... e5 {[%clk 0:03:00.6]} 6. Nxb7 {[%clk 0:02:59.8]} 6... Qb6
{[%clk 0:02:31.3]} 7. Nc5 {[%clk 0:02:58.7]} 7... exd4 {[%clk 0:02:23.8]} 8. Nb3
{[%clk 0:02:58.9]} 8... c5 {[%clk 0:02:08.3]} 9. Bd3 {[%clk 0:02:56.8]} 9... Be6
{[%clk 0:02:03.3]} 10. Nd2 {[%clk 0:02:32.7]} 10... Nc6 {[%clk 0:01:54.6]} 11.
Ngf3 {[%clk 0:02:32.6]} 11... Nf6 {[%clk 0:01:53.4]} 12. O-O {[%clk 0:02:30.1]}
12... Be7 {[%clk 0:01:54.8]} 13. Nc4 {[%clk 0:02:30.7]} 13... Qc7 {[%clk
0:01:52.2]} 14. b3 {[%clk 0:02:29.6]} 14... O-O {[%clk 0:01:51.6]} 15. Re1
{[%clk 0:02:29.4]} 15... Nd5 {[%clk 0:01:44]} 16. Bd2 {[%clk 0:02:24.8]} 16...
Rfe8 {[%clk 0:01:42.2]} 17. Nfe5 {[%clk 0:02:18.6]} 17... Nxe5 {[%clk
0:01:41.4]} 18. Nxe5 {[%clk 0:02:20.5]} 18... Bf6 {[%clk 0:01:40.4]} 19. Nc4
{[%clk 0:02:17.1]} 19... Nc3 {[%clk 0:01:40.2]} 20. Qf3 {[%clk 0:02:10.7]} 20...
Rad8 {[%clk 0:01:27.5]} 21. a4 {[%clk 0:02:10.1]} 21... Qc8 {[%clk 0:01:20.9]}
22. h3 {[%clk 0:02:04.6]} 22... Qd7 {[%clk 0:01:09.2]} 23. Qh5 {[%clk
0:01:58.8]} 23... g6 {[%clk 0:01:07]} 24. Qxc5 {[%clk 0:01:57.2]} 24... Bd5
{[%clk 0:00:58.5]} 25. Rxe8+ {[%clk 0:01:38.1]} 25... Rxe8 {[%clk 0:00:59.2]}
26. Re1 {[%clk 0:01:39]} 26... Rxe1+ {[%clk 0:00:54.7]} 27. Bxe1 {[%clk
0:01:40.9]} 27... Qe6 {[%clk 0:00:54.9]} 28. Bxc3 {[%clk 0:01:40.3]} 28... dxc3
{[%clk 0:00:54.9]} 29. Qxa7 {[%clk 0:01:32.2]} 29... Qe1+ {[%clk 0:00:47.8]} 30.
Bf1 {[%clk 0:01:32.4]} 30... Qc1 {[%clk 0:00:39.4]} 31. Ne3 {[%clk 0:01:28.6]}
31... Be4 {[%clk 0:00:34.6]} 32. Qa6 {[%clk 0:01:11.1]} 32... Kg7 {[%clk
0:00:32.9]} 33. Qe2 {[%clk 0:01:10.1]} 33... h5 {[%clk 0:00:33.7]} 34. a5 {[%clk
0:01:10.5]} 34... Bd4 {[%clk 0:00:32]} 35. a6 {[%clk 0:01:08.2]} 35... Qd2
{[%clk 0:00:26.7]} 36. Qxd2 {[%clk 0:00:28.4]} 36... cxd2 {[%clk 0:00:28.6]} 37.
Be2 {[%clk 0:00:29.1]} 37... Bxe3 {[%clk 0:00:26.2]} 38. fxe3 {[%clk 0:00:29.6]}
38... Bxc2 {[%clk 0:00:27.6]} 39. a7 {[%clk 0:00:30.5]} 39... Be4 {[%clk
0:00:29]} 40. Kf2 {[%clk 0:00:25]} 40... Kf6 {[%clk 0:00:30.2]} 41. Bd1 {[%clk
0:00:24.2]} 41... Ke5 {[%clk 0:00:28.8]} 42. h4 {[%clk 0:00:24.5]} 42... Kd6
{[%clk 0:00:27.2]} 43. g3 {[%clk 0:00:24.4]} 43... Kc7 {[%clk 0:00:27.3]} 44.
Ke2 {[%clk 0:00:21.8]} 44... Kb6 {[%clk 0:00:28.6]} 45. Kxd2 {[%clk 0:00:23.2]}
45... Kxa7 {[%clk 0:00:29.8]} 46. Kc3 {[%clk 0:00:24.4]} 46... Kb6 {[%clk
0:00:31.2]} 47. Kd4 {[%clk 0:00:25.1]} 47... Bf5 {[%clk 0:00:31.7]} 48. Ke5
{[%clk 0:00:25.7]} 48... Kb5 {[%clk 0:00:29.3]} 49. Be2+ {[%clk 0:00:25.3]}
49... Kb4 {[%clk 0:00:25.5]} 50. Bc4 {[%clk 0:00:26.5]} 50... Kc3 {[%clk
0:00:23.5]} 51. Bxf7 {[%clk 0:00:26.4]} 51... Kd2 {[%clk 0:00:25.4]} 52. e4
{[%clk 0:00:26.4]} 1-0